bitfinex-derivatives/quotes_BTCF0:USTF0_20250719
["timestamp","ask_amount","ask_price","bid_price","bid_amount"]
[1752920008470,0.18628195,118320.0,118310.0,1.7227611]
[1752920008664,0.18628195,118320.0,118310.0,2.0627611]
[1752920008864,0.18628195,118320.0,118310.0,2.10836439]
[1752920009676,0.18628195,118320.0,118310.0,1.76836439]
[1752920009975,0.18628195,118320.0,118310.0,2.11836439]
[1752920012077,0.12923195,118320.0,118310.0,2.11836439]
[1752920016181,0.12923195,118320.0,118310.0,1.82316439]
[1752920016376,0.12923195,118320.0,118310.0,1.17598335]
[1752920016577,0.12923195,118320.0,118310.0,1.47316439]
[1752920017482,0.12923195,118320.0,118310.0,1.4275611]
[1752920021082,0.12923195,118320.0,118310.0,1.7227611]
[1752920021380,0.12923195,118320.0,118310.0,1.3619611]
[1752920021582,0.12923195,118320.0,118310.0,2.0835611]
[1752920025678,0.12923195,118320.0,118310.0,1.3619611]
[1752920026182,0.12923195,118320.0,118310.0,2.0835611]
[1752920027587,0.12923195,118320.0,118310.0,2.4135611]
[1752920027979,0.03343195,118320.0,118310.0,2.56215162]
[1752920028181,0.03343195,118320.0,118310.0,2.60775491]
[1752920028983,0.03343195,118320.0,118310.0,2.45916439]
[1752920029385,0.06399195,118320.0,118310.0,2.45916439]
[1752920031892,0.10349195,118320.0,118310.0,2.45916439]
[1752920033789,0.10349195,118320.0,118310.0,1.73756439]
[1752920033993,0.10349195,118320.0,118310.0,2.45916439]
[1752920036090,0.08656678,118320.0,118310.0,1.73756439]
[1752920036388,0.08656678,118320.0,118310.0,2.45916439]
[1752920036790,0.08656678,118320.0,118310.0,2.16396439]
[1752920037996,0.09881678,118320.0,118310.0,2.16396439]
[1752920047399,0.09881678,118320.0,118310.0,2.1183611]
[1752920050707,0.09881678,118320.0,118310.0,1.3967611]
[1752920051005,0.09881678,118320.0,118310.0,2.1183611]
[1752920052909,0.09881678,118320.0,118310.0,1.3967611]
[1752920053108,0.09881678,118320.0,118310.0,2.1183611]
[1752920056411,0.09881678,118320.0,118310.0,1.3967611]
[1752920056712,0.09881678,118320.0,118310.0,2.1183611]
[1752920057512,0.09881678,118320.0,118310.0,2.16396439]
[1752920062119,0.08231,118320.0,118310.0,2.16396439]
[1752920062416,0.08231,118320.0,118310.0,2.19439154]
[1752920070519,0.08231,118320.0,118310.0,1.8972105]
[1752920070718,0.08231,118320.0,118310.0,2.19439154]
[1752920077031,0.08231,118320.0,118310.0,2.16396439]
[1752920084436,0.08231,118320.0,118310.0,1.44236439]
[1752920084736,0.08231,118320.0,118310.0,2.16396439]
[1752920087436,0.08231,118320.0,118310.0,2.1183611]
[1752920091338,0.08231,118320.0,118310.0,2.14877759]
[1752920093542,0.08231,118320.0,118310.0,2.149042]
[1752920094744,0.08231,118320.0,118310.0,1.427442]
[1752920095043,0.08231,118320.0,118310.0,2.149042]
[1752920097543,0.08231,118320.0,118310.0,2.1642288]
[1752920097847,0.1345,118320.0,118310.0,2.1642288]
[1752920100947,0.1345,118320.0,118310.0,2.4594288]
[1752920116456,0.10762,118320.0,118310.0,2.4594288]
[1752920117057,0.08231,118320.0,118310.0,2.4594288]
[1752920122154,0.09887229,118320.0,118310.0,2.4594288]
[1752920123158,0.09887229,118320.0,118310.0,2.1494288]
[1752920123859,0.09887229,118320.0,118310.0,2.4694288]
[1752920124047,0.09887229,118320.0,118310.0,2.1294288]
[1752920124253,0.09887229,118320.0,118310.0,2.1494288]
[1752920125761,0.09887229,118320.0,118310.0,1.85224776]
[1752920126059,0.11814229,118320.0,118310.0,2.1494288]
[1752920135563,0.11814229,118320.0,118310.0,2.00083828]
[1752920135764,0.11814229,118320.0,118310.0,2.1494288]
[1752920137367,0.11814229,118320.0,118310.0,2.10382551]
[1752920147373,0.11814229,118320.0,118310.0,2.1494288]
[1752920156785,0.11814229,118320.0,118310.0,2.4594288]
[1752920157085,0.11814229,118320.0,118310.0,2.1494288]
[1752920161585,0.11814229,118320.0,118310.0,1.85224776]
[1752920162085,0.11814229,118320.0,118310.0,2.1494288]
[1752920162893,0.14939229,118320.0,118310.0,2.1494288]
[1752920164294,0.14939229,118320.0,118310.0,1.85224776]
[1752920164496,0.16621978,118320.0,118310.0,2.1494288]
[1752920172697,0.16621978,118320.0,118310.0,1.85224776]
[1752920173099,0.16621978,118320.0,118310.0,2.1494288]
[1752920176198,0.14076978,118320.0,118310.0,2.1494288]
[1752920177497,0.14076978,118320.0,118310.0,2.10382551]
[1752920177700,0.14076978,118320.0,118310.0,2.08382551]
[1752920177900,0.14076978,118320.0,118310.0,2.46382551]
[1752920178091,0.14076978,118320.0,118310.0,2.10382551]
[1752920179901,0.14076978,118320.0,118310.0,2.08382551]
[1752920180100,0.14076978,118320.0,118310.0,2.10382551]
[1752920180296,0.14076978,118320.0,118310.0,2.46382551]
[1752920180501,0.14076978,118320.0,118310.0,2.10382551]
[1752920180702,0.14076978,118320.0,118310.0,2.46382551]
[1752920181003,0.14076978,118320.0,118310.0,2.10382551]
[1752920185110,0.14076978,118320.0,118310.0,2.39382551]
[1752920186111,0.09887229,118320.0,118310.0,2.39382551]
[1752920187611,0.09887229,118320.0,118310.0,2.4394288]
[1752920188213,0.09887229,118320.0,118310.0,2.1442288]
[1752920189913,0.09887229,118320.0,118310.0,1.4226288]
[1752920190114,0.09887229,118320.0,118310.0,2.1442288]
[1752920193111,0.08662229,118320.0,118310.0,2.29281932]
[1752920193305,0.08662229,118320.0,118310.0,2.00281932]
[1752920193911,0.09842229,118320.0,118310.0,2.00281932]
[1752920194915,0.09842229,118320.0,118310.0,2.33281932]
[1752920195215,0.09842229,118320.0,118310.0,2.33381932]
[1752920195515,0.09842229,118320.0,118310.0,2.33481932]
[1752920196211,0.09842229,118320.0,118310.0,1.98481932]
[1752920196415,0.09842229,118320.0,118310.0,2.30481932]
[1752920196615,0.09842229,118320.0,118310.0,2.00481932]
[1752920198318,0.09842229,118320.0,118310.0,1.98481932]
[1752920198512,0.09842229,118320.0,118310.0,2.64001932]
[1752920199619,0.09842229,118320.0,118310.0,2.62001932]
[1752920199822,0.09842229,118320.0,118310.0,2.30001932]
[1752920200118,0.09842229,118320.0,118310.0,2.63001932]
[1752920200318,0.09842229,118320.0,118310.0,2.30001932]
[1752920200616,0.09842229,118320.0,118310.0,2.62001932]
[1752920201619,0.09842229,118320.0,118310.0,2.28001932]
[1752920201918,0.09842229,118320.0,118310.0,2.64001932]
[1752920207720,0.10957729,118360.0,118350.0,0.1762279]
[1752920207920,0.217724,118360.0,118350.0,0.49754894]
[1752920208116,0.217724,118360.0,118350.0,0.85834894]
[1752920208317,0.229524,118360.0,118350.0,0.70975842]
[1752920208817,0.729524,118360.0,118350.0,0.70975842]
[1752920209021,0.732524,118360.0,118350.0,0.70975842]
[1752920209524,0.736524,118360.0,118350.0,0.70975842]
[1752920209726,0.804874,118360.0,118350.0,0.70975842]
[1752920210427,0.804874,118360.0,118350.0,0.85834894]
[1752920210828,0.63589,118360.0,118350.0,0.87802894]
[1752920211217,0.61197,118360.0,118350.0,1.17322894]
[1752920212118,0.11197,118360.0,118350.0,1.17322894]
[1752920212319,0.13589,118360.0,118350.0,1.17322894]
[1752920213525,0.13589,118360.0,118350.0,1.53402894]
[1752920219636,0.15249577,118360.0,118350.0,1.53402894]
[1752920221738,0.15249577,118360.0,118350.0,1.2368479]
[1752920222040,0.15249577,118360.0,118350.0,1.53402894]
[1752920229643,0.15249716,118360.0,118350.0,1.53402894]
[1752920238348,0.15249716,118360.0,118350.0,0.81242894]
[1752920238550,0.15249716,118360.0,118350.0,1.53402894]
[1752920246562,0.15249716,118360.0,118350.0,2.11234894]
[1752920249057,0.15249716,118360.0,118350.0,1.53402894]
[1752920249263,0.15249716,118360.0,118350.0,2.11230894]
[1752920250465,0.15249716,118360.0,118350.0,1.39070894]
[1752920250769,0.15255135,118360.0,118350.0,2.11230894]
[1752920263669,0.15255135,118360.0,118350.0,1.39070894]
[1752920263881,0.15255135,118360.0,118350.0,2.11230894]
[1752920264073,0.12863135,118360.0,118350.0,2.11230894]
[1752920264377,0.12863135,118360.0,118350.0,1.39070894]
[1752920264577,0.12863135,118360.0,118350.0,2.11230894]
[1752920264766,0.06477135,118360.0,118350.0,2.11230894]
[1752920265080,0.10165135,118360.0,118350.0,2.11230894]
[1752920277779,0.10165135,118360.0,118350.0,1.8151279]
[1752920277981,0.12607135,118360.0,118350.0,2.11230894]
[1752920280873,0.12607135,118360.0,118350.0,1.53402894]
[1752920281177,0.15121135,118360.0,118350.0,2.11210894]
[1752920288780,0.15121135,118360.0,118350.0,1.39050894]
[1752920288982,0.15121135,118360.0,118350.0,1.75130894]
[1752920295680,0.15114535,118360.0,118350.0,1.75130894]
[1752920297786,0.10715535,118360.0,118350.0,1.75130894]
[1752920300387,0.10715535,118360.0,118350.0,1.39050894]
[1752920300583,0.10715535,118360.0,118350.0,1.75130894]
[1752920305689,0.10715535,118360.0,118350.0,1.39050894]
[1752920305990,0.10715535,118360.0,118350.0,1.75130894]
[1752920319304,0.10719693,118360.0,118350.0,1.75130894]
[1752920328416,0.12551693,118360.0,118350.0,1.75130894]
[1752920328609,0.14836693,118360.0,118350.0,1.75130894]
[1752920339119,0.14836693,118360.0,118350.0,1.39050894]
[1752920339321,0.14836693,118360.0,118350.0,1.75130894]
[1752920340423,0.14836586,118360.0,118350.0,1.75130894]
[1752920343125,0.46582998,118360.0,118350.0,1.41375052]
[1752920343324,0.46582998,118360.0,118350.0,1.00495842]
[1752920343523,0.46582998,118360.0,118350.0,1.58263842]
[1752920343725,0.96582998,118360.0,118350.0,1.58263842]
[1752920344120,0.96582998,118360.0,118350.0,0.64415842]
[1752920344321,0.96582998,118360.0,118350.0,1.00495842]
[1752920344624,0.81723946,118360.0,118350.0,1.00495842]
[1752920344825,0.81723946,118360.0,118350.0,0.8563679]
[1752920345015,0.81723946,118360.0,118350.0,1.00495842]
[1752920346428,0.81723946,118360.0,118350.0,0.70975842]
[1752920346825,0.96582998,118360.0,118350.0,0.70975842]
[1752920348831,0.96582998,118360.0,118350.0,0.34895842]
[1752920349030,0.96582998,118360.0,118350.0,0.70975842]
[1752920350624,0.81723946,118360.0,118350.0,0.70975842]
[1752920351029,0.96582998,118360.0,118350.0,0.70975842]
[1752920351822,0.96582998,118360.0,118350.0,0.34895842]
[1752920352026,0.96582998,118360.0,118350.0,0.70975842]
[1752920357436,0.96582998,118360.0,118350.0,0.5611679]
[1752920357636,0.96582998,118360.0,118350.0,0.70975842]
[1752920359138,0.81723946,118360.0,118350.0,0.70975842]
[1752920359335,0.96582998,118360.0,118350.0,0.70975842]
[1752920360341,0.81723946,118360.0,118350.0,0.85834894]
[1752920361939,0.81723946,118360.0,118350.0,0.86844894]
[1752920362139,0.81723946,118360.0,118350.0,0.85834894]
[1752920362537,0.81723946,118360.0,118350.0,0.70975842]
[1752920362740,0.81723946,118360.0,118350.0,0.85834894]
[1752920363442,0.81723946,118360.0,118350.0,0.70975842]
[1752920363634,1.39667946,118360.0,118350.0,0.70975842]
[1752920364543,1.39667946,118360.0,118350.0,0.85834894]
[1752920365941,1.39667946,118360.0,118350.0,0.70975842]
[1752920366940,1.39667946,118360.0,118350.0,0.85834894]
[1752920368137,0.81723946,118360.0,118350.0,0.85834894]
[1752920368441,1.39655946,118360.0,118350.0,0.85834894]
[1752920370846,1.45739675,118360.0,118350.0,0.85834894]
[1752920372350,1.45739675,118360.0,118350.0,0.70975842]
[1752920376347,1.45739675,118360.0,118350.0,0.85834894]
[1752920377148,1.45739675,118360.0,118350.0,0.70975842]
[1752920377548,1.39655946,118360.0,118350.0,0.70975842]
[1752920378950,1.39655946,118360.0,118350.0,0.34895842]
[1752920379151,1.39655946,118360.0,118350.0,0.70975842]
[1752920381350,1.39655946,118360.0,118350.0,0.5611679]
[1752920381547,1.39655946,118360.0,118350.0,0.70975842]
[1752920388958,1.39655946,118360.0,118350.0,0.34895842]
[1752920389160,1.39655946,118360.0,118350.0,0.70975842]
[1752920391763,1.39655946,118360.0,118350.0,0.5611679]
[1752920391963,1.39655946,118360.0,118350.0,0.70975842]
[1752920395766,1.39655946,118360.0,118350.0,0.34895842]
[1752920395967,1.39655946,118360.0,118350.0,0.70975842]
[1752920400275,1.39655946,118360.0,118350.0,0.5611679]
[1752920400574,1.39655946,118360.0,118350.0,0.70975842]
[1752920400775,1.39655946,118360.0,118350.0,0.34895842]
[1752920400973,1.39655946,118360.0,118350.0,0.70975842]
[1752920403376,1.39655946,118360.0,118350.0,0.34895842]
[1752920403674,1.39655946,118360.0,118350.0,0.70975842]
[1752920407573,1.45739675,118360.0,118350.0,0.70975842]
[1752920409379,1.45739675,118360.0,118350.0,0.5611679]
[1752920409581,1.45739675,118360.0,118350.0,0.70975842]
[1752920410480,0.87807675,118360.0,118350.0,0.70975842]
[1752920410680,0.62551586,118360.0,118350.0,1.01451946]
[1752920410888,0.60162586,118360.0,118350.0,0.86592894]
[1752920411576,0.60162586,118360.0,118350.0,1.16112894]
[1752920411979,0.10162586,118360.0,118350.0,1.16112894]
[1752920413483,0.10154875,118360.0,118350.0,1.16112894]
[1752920421495,0.10154875,118360.0,118350.0,1.52192894]
[1752920425397,0.10154875,118360.0,118350.0,0.80032894]
[1752920425592,0.10154875,118360.0,118350.0,1.52192894]
[1752920429891,0.46191287,118360.0,118350.0,1.94411842]
[1752920430097,0.46191287,118360.0,118350.0,1.91997842]
[1752920430492,0.31332235,118360.0,118350.0,1.91997842]
[1752920430700,0.81332235,118360.0,118350.0,1.91997842]
[1752920435306,0.81332235,118360.0,118350.0,1.62477842]
[1752920435910,0.81332235,118360.0,118350.0,0.91327842]
[1752920436114,0.81332235,118360.0,118350.0,1.27407842]
[1752920440508,0.64444875,118360.0,118350.0,1.42901894]
[1752920440708,0.62286875,118360.0,118350.0,1.42901894]
[1752920440900,0.56466875,118360.0,118350.0,1.57760946]
[1752920441107,0.52355875,118360.0,118350.0,2.25280946]
[1752920441306,0.52355875,118360.0,118350.0,1.87280946]
[1752920442113,0.02355875,118360.0,118350.0,1.87280946]
[1752920442408,0.02355875,118360.0,118350.0,1.91841275]
[1752920443310,0.01955875,118360.0,118350.0,1.91841275]
[1752920443510,0.01955875,118360.0,118350.0,2.24941275]
[1752920444212,0.003,118360.0,118350.0,2.24941275]
[1752920445212,0.01329,118360.0,118350.0,2.24941275]
[1752920445410,0.01029,118360.0,118350.0,2.25065275]
[1752920446114,0.01029,118360.0,118350.0,2.39115275]
[1752920446414,0.08546439,118370.0,118360.0,0.1789736]
[1752920446611,0.10198281,118370.0,118360.0,0.99189516]
[1752920450016,0.10198281,118370.0,118360.0,1.28709516]
[1752920452916,0.10198281,118370.0,118360.0,0.92629516]
[1752920453217,0.10198281,118370.0,118360.0,1.64789516]
[1752920463816,0.10198281,118370.0,118360.0,2.02789516]
[1752920464220,0.03376281,118370.0,118360.0,1.64789516]
[1752920464628,0.03376281,118370.0,118360.0,1.96789516]
[1752920465726,0.03376281,118370.0,118360.0,1.66789516]
[1752920465927,0.03376281,118370.0,118360.0,1.96789516]
[1752920467024,0.01651842,118370.0,118360.0,1.96789516]
[1752920467324,0.01651842,118370.0,118360.0,1.98668494]
[1752920469926,0.01651842,118370.0,118360.0,2.03228823]
[1752920472522,0.06838,118380.0,118370.0,0.1769699]
[1752920472729,0.08496898,118380.0,118370.0,1.41782094]
[1752920473635,0.08596898,118380.0,118370.0,1.41782094]
[1752920473825,0.08696898,118380.0,118370.0,1.41782094]
[1752920476626,0.08696898,118380.0,118370.0,1.71302094]
[1752920478724,0.08696898,118380.0,118370.0,1.35222094]
[1752920478931,0.08696898,118380.0,118370.0,2.07382094]
[1752920479130,0.07038,118380.0,118370.0,2.11942423]
[1752920485932,0.07038,118380.0,118370.0,1.39782423]
[1752920486136,0.07038,118380.0,118370.0,2.11942423]
[1752920489236,0.08698888,118380.0,118370.0,2.07382094]
[1752920496953,0.08698888,118380.0,118370.0,1.35222094]
[1752920497154,0.08698888,118380.0,118370.0,2.07382094]
[1752920497756,0.08698888,118380.0,118370.0,1.35222094]
[1752920497947,0.08698888,118380.0,118370.0,2.07382094]
[1752920499153,0.08698888,118380.0,118370.0,2.11942423]
[1752920505763,0.08698888,118380.0,118370.0,1.39782423]
[1752920506064,0.08698888,118380.0,118370.0,2.11942423]
[1752920507463,0.08698888,118380.0,118370.0,1.39782423]
[1752920507664,0.08698888,118380.0,118370.0,2.11942423]
[1752920508468,0.08598888,118380.0,118370.0,2.11942423]
[1752920508666,0.08498888,118380.0,118370.0,2.11942423]
[1752920513373,0.08498888,118380.0,118370.0,1.39782423]
[1752920513578,0.08498888,118380.0,118370.0,2.11942423]
[1752920514976,0.08498888,118380.0,118370.0,1.82224319]
[1752920515184,0.08498888,118380.0,118370.0,2.11942423]
[1752920537989,0.08498888,118380.0,118370.0,1.39782423]
[1752920538292,0.08498888,118380.0,118370.0,2.11942423]
[1752920539294,0.08498888,118380.0,118370.0,2.07382094]
[1752920542097,0.08498888,118380.0,118370.0,2.56241146]
[1752920543498,0.08498888,118380.0,118370.0,2.41382094]
[1752920544397,0.08498888,118380.0,118370.0,1.69222094]
[1752920544597,0.08498888,118380.0,118370.0,2.41382094]
[1752920548903,0.08498888,118380.0,118370.0,2.1166399]
[1752920549108,0.05202888,118380.0,118370.0,2.56241146]
[1752920549311,0.05202888,118380.0,118370.0,2.60801475]
[1752920549809,0.08403888,118380.0,118370.0,2.60801475]
[1752920551211,0.08403888,118380.0,118370.0,2.16224319]
[1752920551412,0.08403888,118380.0,118370.0,2.60801475]
[1752920555817,0.08403888,118380.0,118370.0,1.88641475]
[1752920556016,0.08403888,118380.0,118370.0,2.60801475]
[1752920559219,0.08403888,118380.0,118370.0,2.45942423]
[1752920562419,0.08403888,118380.0,118370.0,2.11942423]
[1752920563716,0.08403888,118380.0,118370.0,2.26801475]
[1752920564118,0.08403888,118380.0,118370.0,2.11942423]
[1752920564321,0.08405102,118380.0,118370.0,2.11942423]
[1752920567530,0.12543102,118380.0,118370.0,2.11942423]
[1752920572529,0.10409102,118380.0,118370.0,2.11942423]
[1752920577035,0.12121346,118380.0,118370.0,1.82224319]
[1752920577235,0.12121346,118380.0,118370.0,2.11942423]
[1752920579338,0.12121346,118380.0,118370.0,2.07382094]
[1752920580838,0.14255346,118380.0,118370.0,1.1937699]
[1752920581138,0.14255346,118380.0,118370.0,1.62740042]
[1752920581332,0.14255346,118380.0,118370.0,1.04716042]
[1752920581534,0.14255346,118380.0,118370.0,1.62788042]
[1752920582135,0.14255346,118380.0,118370.0,1.04716042]
[1752920582935,0.14255346,118380.0,118370.0,1.62788042]
[1752920583841,0.14255346,118380.0,118370.0,1.77647094]
[1752920586240,0.14255346,118380.0,118370.0,1.4792899]
[1752920586438,0.14255346,118380.0,118370.0,1.77647094]
[1752920586640,0.14255346,118380.0,118370.0,1.19575094]
[1752920586839,0.14255346,118380.0,118370.0,1.77687094]
[1752920587840,0.14255346,118380.0,118370.0,1.05527094]
[1752920588040,0.14255346,118380.0,118370.0,1.41607094]
[1752920592047,0.14255346,118380.0,118370.0,1.71127094]
[1752920592347,0.14255346,118380.0,118370.0,1.35047094]
[1752920592549,0.14255346,118380.0,118370.0,1.71127094]
[1752920595862,0.14255346,118380.0,118370.0,1.35047094]
[1752920596063,0.14255346,118380.0,118370.0,1.71127094]
[1752920596459,0.14255346,118380.0,118370.0,1.35047094]
[1752920596659,0.14255346,118380.0,118370.0,1.71127094]
[1752920597462,0.14255346,118380.0,118370.0,1.71180094]
[1752920601570,0.14246056,118380.0,118370.0,1.71180094]
[1752920601766,0.14246056,118380.0,118370.0,1.35100094]
[1752920601972,0.14246056,118380.0,118370.0,1.71180094]
[1752920605873,0.14246056,118380.0,118370.0,1.35100094]
[1752920606075,0.14246056,118380.0,118370.0,1.71180094]
[1752920606775,0.14246056,118380.0,118370.0,1.35100094]
[1752920606975,0.14246056,118380.0,118370.0,1.71180094]
[1752920608877,0.14246056,118380.0,118370.0,1.35100094]
[1752920609077,0.14246056,118380.0,118370.0,1.71180094]
[1752920611073,0.14256252,118380.0,118370.0,1.71180094]
[1752920612882,0.14256252,118380.0,118370.0,1.35100094]
[1752920613079,0.14256252,118380.0,118370.0,1.71180094]
[1752920614682,0.14256252,118380.0,118370.0,1.35100094]
[1752920614882,0.14256252,118380.0,118370.0,1.71180094]
[1752920615684,0.14256252,118380.0,118370.0,1.35100094]
[1752920615983,0.14256252,118380.0,118370.0,1.71180094]
[1752920616384,0.14256252,118380.0,118370.0,1.35100094]
[1752920616581,0.14256252,118380.0,118370.0,1.71180094]
[1752920618276,0.14256267,118380.0,118370.0,1.71180094]
[1752920618986,0.14256267,118380.0,118370.0,1.4146199]
[1752920619186,0.14256267,118380.0,118370.0,1.71180094]
[1752920627093,0.14256267,118380.0,118370.0,1.0538199]
[1752920627292,0.14256267,118380.0,118370.0,1.71180094]
[1752920627887,0.31142197,118380.0,118370.0,1.71180094]
[1752920628093,0.14256267,118380.0,118370.0,1.71180094]
[1752920637004,0.14256267,118380.0,118370.0,1.13068094]
[1752920637204,0.14256267,118380.0,118370.0,1.71020094]
[1752920638404,0.14256267,118380.0,118370.0,1.34940094]
[1752920638605,0.14256267,118380.0,118370.0,1.71020094]
[1752920639898,0.31141877,118380.0,118370.0,1.71020094]
[1752920641104,0.14256267,118380.0,118370.0,1.71020094]
[1752920641400,0.31141797,118380.0,118370.0,1.71020094]
[1752920641798,0.31141797,118380.0,118370.0,1.34940094]
[1752920642003,0.31141797,118380.0,118370.0,1.71020094]
[1752920642303,0.14256267,118380.0,118370.0,1.71020094]
[1752920645008,0.31141817,118380.0,118370.0,1.71020094]
[1752920645403,0.03375267,118380.0,118370.0,1.85879146]
[1752920646005,0.04270267,118380.0,118370.0,1.71020094]
[1752920646201,0.06740267,118380.0,118370.0,1.71020094]
[1752920646405,0.03375267,118380.0,118370.0,1.85879146]
[1752920648304,0.04270267,118380.0,118370.0,1.85879146]
[1752920650809,0.04270267,118380.0,118370.0,1.71020094]
[1752920651709,0.02607244,118380.0,118370.0,1.71020094]
[1752920652211,0.04269281,118380.0,118370.0,1.71020094]
[1752920652412,0.04269281,118380.0,118370.0,1.85879146]
[1752920652813,0.02607244,118380.0,118370.0,1.85879146]
[1752920653006,0.02607244,118380.0,118370.0,2.21959146]
[1752920653512,0.04269256,118380.0,118370.0,2.21959146]
[1752920653807,0.02607244,118380.0,118370.0,2.21959146]
[1752920654012,0.06739256,118380.0,118370.0,2.21959146]
[1752920654213,0.06739256,118380.0,118370.0,1.92439146]
[1752920654608,0.05077244,118380.0,118370.0,1.92439146]
[1752920655014,0.06739182,118380.0,118370.0,1.92439146]
[1752920656214,0.09726182,118380.0,118370.0,1.92439146]
[1752920664219,0.09726182,118380.0,118370.0,1.96998431]
[1752920665722,0.04269182,118380.0,118370.0,1.96998431]
[1752920667825,0.04269182,118380.0,118370.0,1.24838431]
[1752920668025,0.04269182,118380.0,118370.0,1.96998431]
[1752920668419,0.06739182,118380.0,118370.0,1.96998431]
[1752920669324,0.06739182,118380.0,118370.0,1.92439146]
[1752920670420,0.09726182,118380.0,118370.0,1.92439146]
[1752920671726,0.09726182,118380.0,118370.0,1.20279146]
[1752920671926,0.09726182,118380.0,118370.0,1.92439146]
[1752920677731,0.09726182,118380.0,118370.0,1.20279146]
[1752920678027,0.09726182,118380.0,118370.0,1.92439146]
[1752920679332,0.09726182,118380.0,118370.0,1.96998431]
[1752920679733,0.04269182,118380.0,118370.0,2.28998431]
[1752920680031,0.03374182,118380.0,118370.0,2.28998431]
[1752920680630,0.04216182,118380.0,118370.0,2.28998431]
[1752920682135,0.09354182,118380.0,118370.0,2.28998431]
[1752920682435,0.07692244,118380.0,118370.0,2.28998431]
[1752920689740,0.78408803,118420.0,118410.0,0.1688124]
[1752920689933,1.05064721,118420.0,118410.0,0.31740292]
[1752920690138,1.23658902,118420.0,118410.0,0.31740292]
[1752920690940,1.73658902,118420.0,118410.0,0.31740292]
[1752920691134,1.74058902,118420.0,118410.0,0.31740292]
[1752920691838,1.80038902,118420.0,118410.0,0.31740292]
[1752920692045,1.79938902,118420.0,118410.0,0.31740292]
[1752920692241,1.55338902,118420.0,118410.0,0.31740292]
[1752920693449,1.48435198,118420.0,118410.0,0.31740292]
[1752920695343,1.42351469,118420.0,118410.0,0.31740292]
[1752920695553,1.57210521,118420.0,118410.0,0.31740292]
[1752920696954,1.04240921,118420.0,118410.0,0.31740292]
[1752920697146,1.21130521,118420.0,118410.0,0.31740292]
[1752920697952,1.21130521,118420.0,118410.0,0.32597566]
[1752920699752,1.64095469,118420.0,118410.0,0.32597566]
[1752920700050,1.78954521,118420.0,118410.0,0.32597566]
[1752920702552,1.64095469,118420.0,118410.0,0.32597566]
[1752920702848,1.62064921,118420.0,118410.0,0.32597566]
[1752920703651,1.04240921,118420.0,118410.0,0.32597566]
[1752920703851,1.47201869,118420.0,118410.0,0.32597566]
[1752920704051,1.62060921,118420.0,118410.0,0.32597566]
[1752920705347,1.47201869,118420.0,118410.0,0.32597566]
[1752920705853,1.62060921,118420.0,118410.0,0.32597566]
[1752920710357,1.47201869,118420.0,118410.0,0.32597566]
[1752920710655,1.62060921,118420.0,118410.0,0.32597566]
[1752920711155,1.47201869,118420.0,118410.0,0.32597566]
[1752920711656,1.62060921,118420.0,118410.0,0.32597566]
[1752920713750,1.47201869,118420.0,118410.0,0.32597566]
[1752920714151,1.53285598,118420.0,118410.0,0.32597566]
[1752920718762,1.6814465,118420.0,118410.0,0.32597566]
[1752920719360,1.69665582,118420.0,118410.0,0.32597566]
[1752920722460,1.68009664,118420.0,118410.0,0.32597566]
[1752920722962,1.68009664,118420.0,118410.0,0.17738514]
[1752920723162,1.68009664,118420.0,118410.0,0.32597566]
[1752920723961,1.53150612,118420.0,118410.0,0.32597566]
[1752920724159,1.68009664,118420.0,118410.0,0.32597566]
[1752920729467,1.66486945,118420.0,118410.0,0.32597566]
[1752920743890,1.51627893,118420.0,118410.0,0.32597566]
[1752920744188,1.66486945,118420.0,118410.0,0.32597566]
[1752920748389,1.66486945,118420.0,118410.0,0.17738514]
[1752920748591,1.66486945,118420.0,118410.0,0.32597566]
[1752920750191,1.66486945,118420.0,118410.0,0.15716326]
[1752920750784,1.60405003,118420.0,118410.0,0.15716326]
[1752920750981,1.60405003,118420.0,118410.0,0.00857274]
[1752920751181,1.60405003,118420.0,118410.0,0.14859052]
[1752920751586,0.1688124,118410.0,118400.0,0.6487442]
[1752920751782,0.2081066,118400.0,118390.0,1.59777187]
[1752920751987,0.28619701,118400.0,118390.0,1.74636239]
[1752920752182,0.28619701,118400.0,118390.0,0.90583689]
[1752920752389,0.43478753,118400.0,118390.0,0.71387779]
[1752920753093,0.43578753,118400.0,118390.0,0.71387779]
[1752920753488,0.43578753,118400.0,118390.0,0.72219958]
[1752920754094,0.93578753,118400.0,118390.0,0.72219958]
[1752920754295,0.78719701,118400.0,118390.0,0.72219958]
[1752920754697,0.78819701,118400.0,118390.0,0.65567321]
[1752920757796,0.78819701,118400.0,118390.0,0.36047321]
[1752920760404,0.78819701,118400.0,118390.0,0.21188269]
[1752920760699,0.78819701,118400.0,118390.0,0.36047321]
[1752920761000,0.93678753,118400.0,118390.0,0.36047321]
[1752920763801,0.78819701,118400.0,118390.0,0.36047321]
[1752920766806,0.93678753,118400.0,118390.0,0.36047321]
[1752920767307,0.93678753,118400.0,118390.0,0.34205321]
[1752920768001,0.93678753,118400.0,118390.0,0.19346269]
[1752920768202,1.66329805,118400.0,118390.0,0.00832179]
[1752920768402,0.2073409,118390.0,118380.0,1.654832]
[1752920768603,0.2677809,118390.0,118380.0,1.46600892]
[1752920770407,0.7677809,118390.0,118380.0,1.46600892]
[1752920770710,0.7677809,118390.0,118380.0,1.10520892]
[1752920771007,0.7677809,118390.0,118380.0,1.46600892]
[1752920772409,0.7677809,118390.0,118380.0,1.47433568]
[1752920778715,0.7677809,118390.0,118380.0,1.11353568]
[1752920778910,0.7677809,118390.0,118380.0,1.47433568]
[1752920780911,0.7677809,118390.0,118380.0,1.43212208]
[1752920781118,0.7677809,118390.0,118380.0,1.07132208]
[1752920781313,0.7842225,118390.0,118380.0,1.07132208]
[1752920786608,0.7842225,118390.0,118380.0,1.09467208]
[1752920790819,0.7842225,118390.0,118380.0,1.11354208]
[1752920795322,0.7842225,118390.0,118380.0,1.47434208]
[1752920796723,0.7842225,118390.0,118380.0,1.21185104]
[1752920796920,0.7842225,118390.0,118380.0,1.50903208]
[1752920801727,0.7842225,118390.0,118380.0,1.21185104]
[1752920802024,0.7842225,118390.0,118380.0,1.50903208]
[1752920802726,0.7842225,118390.0,118380.0,1.14823208]
[1752920802929,0.7842225,118390.0,118380.0,1.50903208]
[1752920805930,0.7842225,118390.0,118380.0,1.14823208]
[1752920806127,0.7842225,118390.0,118380.0,1.50903208]
[1752920811124,0.7842225,118390.0,118380.0,1.4899903]
[1752920817234,0.7842225,118390.0,118380.0,1.4897503]
[1752920821143,0.7842225,118390.0,118380.0,1.19256926]
[1752920821344,0.7842225,118390.0,118380.0,1.4897503]
[1752920821944,0.7842225,118390.0,118380.0,1.1289503]
[1752920822137,0.7842225,118390.0,118380.0,1.4897503]
[1752920822338,0.7842225,118390.0,118380.0,1.19256926]
[1752920822542,0.7842225,118390.0,118380.0,1.4897503]
[1752920823950,0.7842225,118390.0,118380.0,1.1289503]
[1752920824151,0.7842225,118390.0,118380.0,1.4897503]
[1752920840760,0.5250316,118390.0,118380.0,1.99914082]
[1752920840959,0.5164416,118390.0,118380.0,1.99914082]
[1752920841161,0.45854268,118390.0,118380.0,2.31914082]
[1752920841355,0.0164416,118390.0,118380.0,3.06011238]
[1752920841555,0.0164416,118390.0,118380.0,2.93904602]